bitfinex/quotes_SOLUSD_20260302
["timestamp","ask_amount","ask_price","bid_price","bid_amount"]
[1772462509392,0.10088918,84.18,84.131,0.46889323]
[1772462509614,14.50071003,84.19,84.141,0.46889323]
[1772462509791,11.87803632,84.189,84.151,0.46889323]
[1772462510226,11.87803632,84.189,84.152,11.88325886]
[1772462510512,14.50071003,84.21,84.17,14.50071003]
[1772462510720,11.87169076,84.234,84.181,0.46889323]
[1772462511020,14.50071003,84.23,84.19,14.50071003]
[1772462511398,14.50071003,84.23,84.181,0.46889323]
[1772462511599,14.50071003,84.22,84.181,0.46889323]
[1772462511905,14.50071003,84.23,84.181,0.46889323]
[1772462512110,14.50071003,84.23,84.19,14.50071003]
[1772462512308,0.11065482,84.239,84.191,11.87775415]
[1772462512510,0.11065482,84.239,84.155,3.69383402]
[1772462512511,14.50071003,84.22,84.185,12.3474109]
[1772462512698,14.50071003,84.22,84.185,0.46889323]
[1772462513002,14.50071003,84.21,84.171,42.05091078]
[1772462513203,14.50071003,84.22,84.172,0.46889323]
[1772462513397,14.50071003,84.22,84.171,11.88057644]
[1772462513398,14.50071003,84.25,84.211,0.46889323]
[1772462513654,14.50071003,84.25,84.174,3.69383402]
[1772462513655,14.50071003,84.25,84.201,0.46889323]
[1772462513832,14.50071003,84.24,84.201,0.46889323]
[1772462514015,14.50071003,84.23,84.19,14.50071003]
[1772462514218,14.50071003,84.22,84.186,11.8784596]
[1772462514600,9.03380377,84.24,84.201,0.46889323]
[1772462515099,9.03380377,84.25,84.211,0.46889323]
[1772462515316,9.03380377,84.24,84.211,0.46889323]
[1772462515521,9.03380377,84.25,84.211,0.46889323]
[1772462515816,9.03380377,84.22,84.183,0.46889323]
[1772462516213,9.03380377,84.24,84.191,0.46889323]
[1772462516415,11.86999976,84.246,84.21,9.502697]
[1772462516615,9.03380377,84.24,84.186,0.46889323]
[1772462516817,9.03380377,84.22,84.176,0.46889323]
[1772462517026,9.03380377,84.22,84.181,0.46889323]
[1772462517200,9.03380377,84.21,84.181,0.46889323]
[1772462517603,9.03380377,84.22,84.181,0.46889323]
[1772462517801,9.03380377,84.22,84.177,0.46889323]
[1772462518021,0.1000291,84.229,84.177,0.46889323]
[1772462518022,9.03380377,84.21,84.177,0.46889323]
[1772462518225,41.55831818,84.219,84.181,0.46889323]
[1772462518413,9.03380377,84.21,84.17,9.03380377]
[1772462518605,9.03380377,84.21,84.171,0.46889323]
[1772462518803,9.03380377,84.21,84.16,9.03380377]
[1772462518804,9.03380377,84.2,84.158,0.46889323]
[1772462519214,9.03380377,84.19,84.158,0.46889323]
[1772462520043,9.03380377,84.19,84.145,0.46889323]
[1772462520325,0.0937323,84.193,84.145,0.46889323]
[1772462520326,11.87944736,84.179,84.146,11.88410619]
[1772462520527,0.0937323,84.245,84.15,9.03380377]
[1772462520829,9.03380377,84.21,84.165,0.46889323]
[1772462521031,89.02711171,84.244,84.153,4.16272725]
[1772462521032,9.03380377,84.19,84.153,4.16272725]
[1772462521323,0.0916463,84.235,84.178,0.46889323]
[1772462521524,9.03380377,84.22,84.181,0.46889323]
[1772462521828,9.03380377,84.23,84.191,0.46889323]
[1772462522325,9.03380377,84.23,84.193,0.46889323]
[1772462522630,20.90464897,84.24,84.201,0.46889323]
[1772462522829,9.03380377,84.23,84.186,0.46889323]
[1772462523333,9.03380377,84.24,84.2,9.03380377]
[1772462523513,9.03380377,84.25,84.211,0.46889323]
[1772462523713,9.03380377,84.26,84.211,0.46889323]
[1772462523930,9.03380377,84.26,84.221,0.46889323]
[1772462524323,41.53858934,84.259,84.221,0.46889323]
[1772462524628,47.45716931,84.287,84.21,9.03380377]
[1772462524629,9.03380377,84.32,84.254,0.46889323]
[1772462524834,9.03380377,84.34,84.3,9.03380377]
[1772462525034,11.85613663,84.345,84.301,0.46889323]
[1772462525224,0.28432314,84.339,84.301,0.46889323]
[1772462525532,9.03380377,84.34,84.301,0.46889323]
[1772462525831,11.85613663,84.345,84.32,9.03380377]
[1772462526130,0.1,84.35,84.33,9.03380377]
[1772462526337,0.1,84.35,84.31,9.03380377]
[1772462526528,0.28432314,84.349,84.281,41.52774645]
[1772462526834,9.51412673,84.32,84.236,0.28432314]
[1772462527008,9.03380377,84.32,84.27,9.03380377]
[1772462527330,9.03380377,84.31,84.26,9.03380377]
[1772462527522,0.48032296,84.32,84.28,9.03380377]
[1772462527523,0.28432314,84.319,84.28,9.03380377]
[1772462527724,9.13380377,84.35,84.29,9.03380377]
[1772462527725,0.28432314,84.329,84.29,9.03380377]
[1772462527924,0.1,84.35,84.31,9.03380377]
[1772462528120,0.1,84.35,84.32,9.03380377]
[1772462528321,0.1,84.35,84.32,9.502697]
[1772462528825,0.1,84.35,84.322,0.46889323]
[1772462529027,0.1,84.35,84.29,9.03380377]
[1772462529028,0.48032296,84.339,84.29,9.03380377]
[1772462529342,9.03380377,84.33,84.29,0.46889323]
[1772462529544,0.48032296,84.339,84.29,0.46889323]
[1772462529545,9.03380377,84.32,84.29,0.46889323]
[1772462529722,9.03380377,84.32,84.276,0.46889323]
[1772462529921,9.13380377,84.35,84.301,0.46889323]
[1772462529922,0.1,84.35,84.301,0.46889323]
[1772462530122,9.03380377,84.34,84.301,0.46889323]
[1772462530321,11.8555051,84.349,84.312,11.86070784]
[1772462530526,0.1,84.35,84.33,9.03380377]
[1772462530734,0.1,84.35,84.321,0.46889323]
[1772462531033,11.8555051,84.349,84.321,0.46889323]
[1772462531726,0.1,84.35,84.321,0.46889323]
[1772462532230,0.1,84.35,84.331,0.46889323]
[1772462532411,0.2539261,84.357,84.341,0.46889323]
[1772462532812,9.03380377,84.35,84.31,21.36355584]
[1772462533039,9.03380377,84.35,84.311,0.46889323]
[1772462533217,12.10841476,84.357,84.311,0.46889323]
[1772462533424,9.03380377,84.35,84.311,0.46889323]
[1772462533813,0.2539261,84.357,84.331,0.46889323]
[1772462534225,11.85452131,84.356,84.331,0.46889323]
[1772462534520,0.2539261,84.357,84.295,3.69383402]
[1772462534521,0.2539261,84.357,84.34,9.03380377]
[1772462534727,1.0268182,84.383,84.35,9.03380377]
[1772462535035,1.0268182,84.383,84.332,41.50263244]
[1772462535036,9.03380377,84.37,84.332,11.85789498]
[1772462535240,0.47156186,84.379,84.332,11.85789498]
[1772462535443,41.47804033,84.382,84.341,0.46262287]
[1772462535626,0.47156186,84.45,84.332,41.50263244]
[1772462535936,338.13127248,84.634,84.351,0.28432314]
[1772462535937,0.50332563,84.439,84.351,0.28432314]
[1772462536136,9.03380377,84.42,84.38,9.03380377]
[1772462536327,9.03380377,84.42,84.362,0.28432314]
[1772462536328,0.47156186,84.418,84.371,11.85241374]
[1772462536545,0.47156186,84.399,84.371,11.85241374]
[1772462536733,0.47156186,84.379,84.337,12.14151511]
[1772462536935,9.03380377,84.37,84.337,11.85719197]
[1772462537136,9.03380377,84.37,84.305,47.4463701]
[1772462537137,0.47156186,84.362,84.31,0.46262287]
[1772462537335,9.03380377,84.36,84.313,0.49632427]
[1772462537548,9.03380377,84.34,84.306,11.86155196]
[1772462537758,0.28432314,84.359,84.286,0.49632427]
[1772462537759,0.49617927,84.329,84.286,0.49632427]
[1772462538047,9.03380377,84.33,84.288,0.49632427]
[1772462538217,0.49617927,84.342,84.291,0.49632427]
[1772462538218,9.03380377,84.34,84.291,0.49632427]
[1772462538419,9.03380377,84.35,84.301,0.49632427]
[1772462538633,47.3826982,84.419,84.33,9.03380377]
[1772462538634,9.03380377,84.37,84.33,9.03380377]
[1772462538829,9.03380377,84.38,84.34,9.03380377]
[1772462539028,9.03380377,84.38,84.341,0.49632427]
[1772462539242,9.03380377,84.41,84.37,9.03380377]
[1772462539434,11.84567455,84.419,84.371,0.49632427]
[1772462539639,47.46540615,84.45,84.381,0.49632427]
[1772462539640,0.49617927,84.438,84.381,0.49632427]
[1772462539943,14.70906867,84.44,84.394,0.49632427]
[1772462540143,1e-08,84.44,84.43,9.03380377]
[1772462540455,47.32847557,84.516,84.43,9.03380377]
[1772462540456,3.69383402,84.493,84.431,0.49632427]
[1772462540740,41.41625738,84.508,84.46,9.03380377]
[1772462540948,9.03380377,84.5,84.46,9.03380377]
[1772462541329,6.15085598,84.545,84.435,3.69383402]
[1772462541330,11.82991377,84.532,84.49,9.03380377]
[1772462541531,47.29444654,84.577,84.491,0.49632427]
[1772462541731,11.83151916,84.52,84.49,9.03380377]
[1772462541930,11.83151916,84.52,84.448,0.49632427]
[1772462541931,9.03380377,84.51,84.448,0.49632427]
[1772462542128,9.03380377,84.5,84.46,9.03380377]
[1772462542427,0.49617927,84.534,84.491,11.83558012]
[1772462542631,0.49617927,84.563,84.511,0.49632427]
[1772462543020,0.49617927,84.549,84.51,14.3875045]
[1772462543221,0.49617927,84.539,84.483,0.49632427]
[1772462543428,0.49617927,84.539,84.482,11.83684098]
[1772462543429,0.49617927,84.563,84.481,0.49632427]
[1772462543626,0.49617927,84.563,84.471,0.49632427]
[1772462543929,0.49617927,84.549,84.478,0.49632427]
[1772462544247,0.49617927,84.533,84.48,14.3875045]
[1772462544443,0.49617927,84.531,84.48,14.3875045]
[1772462544641,14.3875045,84.52,84.478,0.49632427]
[1772462544843,14.3875045,84.52,84.48,14.3875045]
[1772462545049,0.49617927,84.531,84.479,41.43041465]
[1772462545239,11.82983958,84.532,84.49,14.3875045]
[1772462545240,14.3875045,84.52,84.49,14.3875045]
[1772462545544,0.49617927,84.569,84.511,0.49632427]
[1772462545746,14.3875045,84.55,84.52,14.3875045]
[1772462545925,166.3,84.602,84.53,14.3875045]
[1772462545926,14.3875045,84.56,84.53,14.3875045]
[1772462546131,289.5638813,84.61,84.479,183.47755061]
[1772462546132,0.49617927,84.582,84.526,0.49632427]
[1772462546427,0.49617927,84.582,84.528,0.49632427]
[1772462546629,14.3875045,84.57,84.528,0.49632427]
[1772462546933,14.3875045,84.55,84.51,14.3875045]
[1772462547442,0.49617927,84.549,84.52,14.3875045]
[1772462547653,14.3875045,84.54,84.5,14.3875045]
[1772462548026,0.49617927,84.549,84.51,14.3875045]
[1772462548230,14.3875045,84.54,84.51,14.3875045]
[1772462548539,14.3875045,84.54,84.469,51.04792814]
[1772462548540,0.49617927,84.519,84.47,14.3875045]
[1772462548743,14.3875045,84.53,84.5,14.3875045]
[1772462548927,11.82899997,84.538,84.501,0.49632427]
[1772462549133,14.3875045,84.52,84.48,14.3875045]
[1772462549326,11.82899997,84.538,84.494,0.49632427]
[1772462549635,14.88368377,84.55,84.52,14.3875045]
[1772462549839,14.3875045,84.55,84.52,14.3875045]
[1772462550031,47.28045527,84.602,84.54,14.3875045]
[1772462550032,11.8235454,84.577,84.54,14.3875045]
[1772462550231,14.3875045,84.57,84.52,0.49632427]
[1772462550434,14.3875045,84.57,84.467,1.1838943]
[1772462550435,0.49617927,84.576,84.503,0.49632427]
[1772462550644,0.49617927,84.569,84.53,14.3875045]
[1772462550855,0.49617927,84.569,84.5,11.83431952]
[1772462550856,14.3875045,84.55,84.51,14.3875045]
[1772462551028,0.49617927,84.559,84.52,14.3875045]
[1772462551233,41.38240892,84.577,84.497,0.49632427]
[1772462551234,0.49617927,84.549,84.497,0.49632427]
[1772462551431,0.49617927,84.549,84.51,14.3875045]
[1772462551432,14.3875045,84.54,84.51,14.3875045]
[1772462551737,14.3875045,84.56,84.511,0.49632427]
[1772462551932,0.49617927,84.576,84.53,14.3875045]
[1772462552132,14.3875045,84.57,84.53,14.3875045]
[1772462552445,11.8235454,84.577,84.55,14.3875045]
[1772462552629,11.8235454,84.577,84.531,11.82997953]
[1772462552630,11.8235454,84.577,84.54,14.3875045]
[1772462552949,11.8235454,84.577,84.499,0.49632427]
[1772462552950,0.49617927,84.569,84.499,0.49632427]
[1772462553151,0.49617927,84.576,84.54,14.3875045]
[1772462553448,11.8235454,84.577,84.493,47.34074]
[1772462553449,0.49617927,84.549,84.51,14.3875045]
[1772462553666,14.3875045,84.55,84.51,14.3875045]
[1772462553844,14.3875045,84.54,84.487,0.49632427]
[1772462554029,14.88368377,84.51,84.46,0.49632427]
[1772462554356,0.49617927,84.538,84.471,0.49632427]
[1772462554539,14.3875045,84.5,84.46,14.3875045]
[1772462554736,14.3875045,84.5,84.448,11.84160666]
[1772462554737,0.49617927,84.539,84.489,0.49632427]
[1772462554944,14.3875045,84.52,84.49,14.3875045]
[1772462555149,14.3875045,84.51,84.47,14.3875045]
[1772462555333,14.3875045,84.51,84.48,14.3875045]
[1772462555533,0.49617927,84.529,84.481,0.49632427]
[1772462555754,14.3875045,84.53,84.481,0.49632427]
[1772462555955,14.3875045,84.52,84.481,0.49632427]
[1772462556339,14.3875045,84.51,84.47,14.3875045]
[1772462556534,11.83445957,84.499,84.46,14.3875045]
[1772462556737,11.83445957,84.499,84.47,14.3875045]
[1772462556940,14.3875045,84.49,84.456,0.49632427]
[1772462557139,14.3875045,84.48,84.445,11.84200256]
[1772462557336,14.3875045,84.49,84.45,14.3875045]
[1772462557549,0.49617927,84.521,84.47,14.3875045]
[1772462557740,29.57829134,84.522,84.461,0.49632427]
[1772462557741,14.3875045,84.5,84.461,0.49632427]
[1772462557935,29.57829134,84.522,84.45,14.3875045]
[1772462557936,14.3875045,84.49,84.45,14.3875045]
[1772462558355,0.49617927,84.501,84.45,14.3875045]
[1772462558567,11.83586028,84.489,84.45,14.3875045]
[1772462558737,11.83586028,84.489,84.449,11.84140368]
[1772462558738,14.3875045,84.47,84.439,11.84285078]
[1772462558941,14.3875045,84.47,84.435,0.49632427]
[1772462559240,14.3875045,84.48,84.44,14.3875045]
[1772462560044,0.49617927,84.515,84.451,0.49632427]
[1772462560267,47.31361182,84.543,84.436,41.45151357]
[1772462560268,0.49617927,84.509,84.47,14.3875045]
[1772462560441,59.15129718,84.529,84.46,14.3875045]
[1772462560442,14.88368377,84.5,84.46,14.3875045]
[1772462560640,0.49617927,84.489,84.44,14.88382877]
[1772462560840,14.3875045,84.45,84.418,42.7]
[1772462561040,14.3875045,84.46,84.42,14.88382877]
[1772462561240,183.43412344,84.499,84.43,14.3875045]
[1772462561241,14.3875045,84.47,84.43,14.3875045]
[1772462561440,183.43412344,84.499,84.419,11.84567455]
[1772462561441,11.83445957,84.499,84.46,14.3875045]
[1772462561760,11.83445957,84.499,84.419,195.45363007]
[1772462561761,0.49617927,84.517,84.48,14.3875045]
[1772462562066,11.83207913,84.516,84.48,14.3875045]
[1772462562239,14.3875045,84.51,84.47,14.3875045]
[1772462562437,0.49617927,84.509,84.47,14.3875045]
[1772462562642,47.31539671,84.54,84.448,3.69383402]
[1772462562643,8.97306208,84.52,84.48,8.97306208]
[1772462562839,8.97306208,84.51,84.472,0.49632427]
[1772462563049,0.49617927,84.519,84.48,8.97306208]
[1772462563256,8.97306208,84.51,84.48,8.97306208]
[1772462563464,0.49617927,84.499,84.46,8.97306208]
[1772462563673,0.49617927,84.479,84.44,8.97306208]
[1772462563969,8.97306208,84.47,84.43,8.97306208]
[1772462564165,0.49617927,84.522,84.431,0.49632427]
[1772462564339,0.49617927,84.522,84.404,47.39066066]
[1772462564340,0.49617927,84.439,84.39,8.97306208]
[1772462564545,14.4279286,84.4,84.36,14.4279286]
[1772462564759,14.4279286,84.41,84.362,0.49632427]
[1772462564959,47.36507973,84.451,84.351,0.49632427]
[1772462564960,14.4279286,84.39,84.351,0.49632427]
[1772462565460,14.4279286,84.38,84.34,14.4279286]
[1772462565646,14.4279286,84.37,84.34,11.85674556]
[1772462565847,242.82482259,84.423,84.34,11.85674556]
[1772462565848,14.4279286,84.39,84.35,14.4279286]
[1772462566043,0.49617927,84.409,84.37,14.4279286]
[1772462566275,0.49617927,84.389,84.35,14.4279286]
[1772462566463,14.4279286,84.37,84.335,11.85740795]
[1772462566672,11.85269471,84.369,84.33,26.28601135]
[1772462566845,41.98061075,84.369,84.331,11.85803559]
[1772462567161,14.4279286,84.36,84.325,11.85875408]
[1772462567348,41.48443148,84.369,84.331,0.49241612]
[1772462567549,47.38418373,84.417,84.325,11.85875408]
[1772462567550,14.4279286,84.38,84.341,0.49241612]
[1772462567872,0.47239031,84.389,84.35,14.4279286]
[1772462568042,0.47239031,84.419,84.38,14.4279286]
[1772462568248,14.4279286,84.43,84.39,14.4279286]
[1772462568655,14.4279286,84.41,84.37,14.4279286]
[1772462569151,0.47239031,84.443,84.4,14.92034472]
[1772462569352,0.47239031,84.443,84.42,14.4279286]
[1772462569353,11.84244807,84.442,84.42,14.4279286]
[1772462569546,11.84153969,84.449,84.42,14.4279286]
[1772462570063,11.84153969,84.449,84.363,242.99752259]
[1772462570064,0.47239031,84.487,84.44,14.4279286]
[1772462570265,0.47239031,84.487,84.45,14.4279286]
[1772462570462,0.47239031,84.487,84.41,0.15346498]
[1772462570463,0.47239031,84.469,84.43,14.4279286]
[1772462570663,0.47239031,84.459,84.383,0.28432314]
[1772462570865,0.47239031,84.459,84.42,14.4279286]
[1772462571049,11.83754157,84.477,84.44,14.4279286]
[1772462571365,0.47239031,84.479,84.441,1.18425883]
[1772462571561,0.47239031,84.469,84.43,14.4279286]
[1772462571760,41.4250207,84.49,84.431,0.15914999]
[1772462571960,0.47239031,84.489,84.45,14.4279286]
[1772462572574,0.47239031,84.487,84.45,14.4279286]
[1772462572954,0.47239031,84.502,84.46,14.4279286]
[1772462573277,0.47239031,84.499,84.47,14.4279286]
[1772462573453,14.4279286,84.51,84.47,14.4279286]
[1772462573454,0.47239031,84.509,84.47,14.4279286]
[1772462573658,0.47239031,84.523,84.49,13.83576577]
[1772462573867,11.8312392,84.522,84.49,14.4279286]
[1772462574050,0.47239031,84.509,84.47,14.4279286]
[1772462574252,14.4279286,84.51,84.446,1.18418871]
[1772462574253,0.47239031,84.489,84.45,14.4279286]
[1772462574455,230.70916444,84.522,84.402,1.18480604]
[1772462574456,0.47239031,84.459,84.402,1.18480604]
[1772462574656,0.47239031,84.459,84.332,9.30633063]
[1772462574657,14.4279286,84.41,84.361,0.15297264]
[1772462574876,14.4279286,84.41,84.357,0.15297264]
[1772462574877,14.4279286,84.4,84.357,0.15297264]
[1772462575175,14.4279286,84.42,84.38,14.4279286]
[1772462575466,14.4279286,84.43,84.39,14.4279286]
[1772462575863,14.4279286,84.41,84.358,3.69383402]
[1772462576070,14.4279286,84.42,84.38,14.4279286]
[1772462576471,14.4279286,84.39,84.331,1.18580355]
[1772462576776,11.84988564,84.389,84.35,14.4279286]
[1772462576950,14.4279286,84.38,84.34,14.4279286]
[1772462577151,0.51463748,84.388,84.36,14.4279286]
[1772462577361,0.51463748,84.388,84.35,14.4279286]
[1772462577561,0.51463748,84.388,84.341,1.18566296]
[1772462577562,0.51463748,84.406,84.37,14.4279286]
[1772462577981,14.4279286,84.42,84.38,14.4279286]
[1772462578177,0.51463748,84.419,84.381,1.18510091]
[1772462578686,1.18480604,84.438,84.371,11.85241374]
[1772462578687,0.51463748,84.409,84.371,11.85241374]
[1772462578860,0.51463748,84.399,84.36,14.4279286]
[1772462579060,0.51463748,84.389,84.35,26.28329315]
[1772462579258,0.51463748,84.379,84.34,14.4279286]
[1772462579573,14.94256608,84.37,84.33,14.4279286]
[1772462579751,230.99339001,84.418,84.312,1.18607078]
[1772462579752,14.94256608,84.36,84.32,14.4279286]
[1772462579952,14.4279286,84.35,84.32,26.28749926]
[1772462580170,0.51463748,84.351,84.32,11.85957066]
[1772462580473,14.4279286,84.38,84.34,14.4279286]
[1772462580773,11.8480141,84.403,84.37,14.4279286]
[1772462580971,0.51463748,84.399,84.36,14.4279286]
[1772462581152,0.51463748,84.399,84.36,11.8538857]
[1772462581478,0.51463748,84.399,84.37,14.4279286]
[1772462581657,0.51463748,84.399,84.36,11.8538857]
[1772462581658,0.51463748,84.399,84.36,26.2818143]
[1772462581864,11.84729261,84.408,84.37,14.4279286]
[1772462582060,0.51463748,84.389,84.35,14.4279286]
[1772462582261,0.51463748,84.389,84.309,47.4439716]
[1772462582262,0.51463748,84.379,84.34,14.4279286]
[1772462582460,0.51463748,84.379,84.292,47.45401457]
[1772462582461,0.51463748,84.359,84.314,11.8604265]
[1772462582674,11.85424026,84.358,84.321,11.85944189]
[1772462582968,14.94256608,84.35,84.312,11.86070784]
[1772462583174,14.4279286,84.36,84.32,14.4279286]
[1772462583360,11.85409974,84.359,84.32,14.4279286]
[1772462583560,14.4279286,84.35,84.312,11.86070784]
[1772462583764,0.51463748,84.339,84.3,14.4279286]
[1772462583980,14.4279286,84.34,84.3,14.4279286]
[1772462584182,14.4279286,84.36,84.32,14.4279286]
[1772462584358,0.51463748,84.369,84.33,14.4279286]
[1772462584762,11.8538187,84.361,84.33,14.4279286]
[1772462584960,11.8538187,84.361,84.302,11.86211477]
[1772462584961,0.51463748,84.359,84.32,14.4279286]
[1772462585180,0.51463748,84.359,84.302,41.51740171]
[1772462585181,14.4279286,84.38,84.34,14.4279286]
[1772462585383,14.4279286,84.38,84.302,148.2764347]
[1772462585384,0.51463748,84.399,84.36,14.4279286]
[1772462585678,14.4279286,84.39,84.35,14.4279286]
[1772462585870,0.51463748,84.399,84.36,14.4279286]
[1772462586071,0.51463748,84.399,84.37,14.4279286]
[1772462586275,0.51463748,84.399,84.36,14.4279286]
[1772462586660,1.18480604,84.43,84.38,14.4279286]
[1772462586661,11.84595227,84.418,84.38,14.4279286]
[1772462586859,11.84595227,84.418,84.371,41.4834481]
[1772462586860,14.4279286,84.41,84.371,41.4834481]
[1772462587061,11.84595227,84.418,84.371,41.4834481]
[1772462587062,0.51463748,84.409,84.38,14.4279286]
[1772462587480,0.51463748,84.409,84.371,11.85241374]
[1772462587780,0.51463748,84.421,84.39,14.4279286]
[1772462587969,0.51463748,84.421,84.371,41.4834481]
[1772462587970,0.51463748,84.409,84.371,11.85241374]
[1772462588169,0.51463748,84.409,84.353,1.18549429]
[1772462588170,14.4279286,84.4,84.36,14.4279286]
[1772462588377,0.51463748,84.409,84.37,14.4279286]
[1772462588884,41.45838761,84.422,84.32,14.4279286]
[1772462588885,0.51463748,84.379,84.32,14.4279286]
[1772462589090,14.4279286,84.35,84.31,14.4279286]
[1772462589296,0.51463748,84.339,84.275,42.71729455]
[1772462589584,14.4279286,84.33,84.29,14.4279286]
[1772462589762,0.51463748,84.339,84.3,14.4279286]
[1772462589958,14.4279286,84.33,84.29,14.4279286]
[1772462590385,0.51463748,84.339,84.3,14.4279286]
[1772462590568,14.4279286,84.33,84.29,14.4279286]
[1772462590764,0.51463748,84.329,84.29,14.4279286]
[1772462590978,0.51463748,84.319,84.28,14.4279286]
[1772462591373,11.85625727,84.344,84.31,14.4279286]
[1772462591574,0.51463748,84.347,84.31,14.4279286]
[1772462591776,0.51463748,84.345,84.31,14.4279286]
[1772462591972,11.85592677,84.346,84.27,55.9610958]
[1772462591973,0.51463748,84.319,84.27,55.9610958]
[1772462592183,0.51463748,84.329,84.29,14.4279286]
[1772462592379,14.4279286,84.32,84.278,3.69383402]
[1772462592672,47.41382629,84.364,84.27,41.5331672]
[1772462592673,0.51463748,84.37,84.313,3.69383402]
[1772462592973,0.51463748,84.359,84.31,14.4279286]
[1772462593168,0.51463748,84.349,84.32,14.4279286]
[1772462593370,14.4279286,84.36,84.32,14.4279286]
[1772462593701,14.4279286,84.36,84.283,1.18647888]
[1772462593702,11.85171138,84.376,84.34,14.4279286]
[1772462593866,14.4279286,84.37,84.33,14.4279286]
[1772462594196,14.4279286,84.37,84.298,3.69383402]
[1772462594197,14.4279286,84.4,84.36,14.4279286]
[1772462594389,0.51463748,84.418,84.38,14.4279286]
[1772462594583,0.51463748,84.399,84.348,3.69383402]
[1772462594900,0.51463748,84.418,84.37,14.4279286]
[1772462595193,0.51463748,84.379,84.34,14.4279286]
[1772462595407,0.51463748,84.41,84.35,14.4279286]
[1772462595592,0.51463748,84.379,84.34,14.4279286]
[1772462596498,0.51463748,84.389,84.35,14.4279286]
[1772462596879,0.51463748,84.379,84.33,14.4279286]
[1772462597077,14.94256608,84.37,84.33,14.4279286]
[1772462597380,47.3882662,84.41,84.323,41.50706212]
[1772462597381,11.84988564,84.389,84.35,14.4279286]
[1772462597590,11.84988564,84.389,84.33,14.4279286]
[1772462597591,0.51463748,84.387,84.33,14.4279286]
[1772462597790,0.51463748,84.379,84.34,14.4279286]
[1772462598174,11.84988564,84.389,84.31,14.4279286]
[1772462598175,0.51463748,84.349,84.31,14.4279286]
[1772462598393,1.18480604,84.378,84.3,14.4279286]
[1772462598394,0.51463748,84.339,84.3,14.4279286]
[1772462598699,0.51463748,84.339,84.293,11.8633813]
[1772462598700,0.51463748,84.349,84.31,14.4279286]
[1772462599194,0.51463748,84.347,84.3,14.4279286]
[1772462599395,0.51463748,84.347,84.279,88.98977166]
[1772462599396,14.4279286,84.36,84.32,14.4279286]
[1772462599698,0.51463748,84.358,84.33,14.4279286]
[1772462599878,0.51463748,84.349,84.289,1.18639442]
[1772462600087,0.51463748,84.358,84.32,14.4279286]
[1772462600307,14.4279286,84.37,84.33,14.4279286]
[1772462600509,47.38971513,84.407,84.279,231.3743637]
[1772462600510,0.51463748,84.339,84.279,41.52873194]
[1772462600805,0.51463748,84.349,84.31,14.4279286]
[1772462601188,0.51463748,84.347,84.306,11.86145173]
[1772462601392,0.51463748,84.339,84.3,14.4279286]
[1772462601590,0.51463748,84.329,84.278,29.66373193]
[1772462601811,0.51463748,84.329,84.28,14.4279286]
[1772462602015,14.4279286,84.31,84.272,11.86633757]
[1772462602187,0.51463748,84.289,84.26,12.06798015]
[1772462602800,0.51463748,84.289,84.261,11.86788668]
[1772462603003,0.51463748,84.289,84.26,0.2]
[1772462603512,0.51463748,84.279,84.26,0.2]
[1772462603741,0.51463748,84.295,84.261,11.86788668]
[1772462604003,14.94256608,84.3,84.261,41.53760339]
[1772462604211,0.51463748,84.299,84.261,11.86788668]
[1772462605005,0.51463748,84.299,84.26,0.2]
[1772462605212,14.94256608,84.29,84.26,12.06800459]
[1772462605720,11.86253692,84.299,84.261,41.53760339]
[1772462605898,0.51463748,84.303,84.27,14.4279286]
[1772462606215,0.51463748,84.299,84.261,11.86788668]
[1772462606914,0.51463748,84.299,84.24,14.4279286]
[1772462607120,14.92606308,84.27,84.23,26.30018314]
[1772462607314,88.96586082,84.302,84.24,14.4279286]
[1772462607315,14.4279286,84.28,84.24,14.4279286]
[1772462607498,14.4279286,84.29,84.251,11.86929531]
[1772462607818,0.49813448,84.259,84.22,14.4279286]
[1772462608112,0.49813448,84.249,84.216,11.87422817]
[1772462608493,14.4279286,84.26,84.22,14.4279286]
[1772462608723,14.4279286,84.27,84.23,14.4279286]
[1772462608900,0.49813448,84.269,84.23,14.4279286]
[1772462609096,14.4279286,84.26,84.22,14.4279286]
[1772462609301,0.49813448,84.259,84.216,41.5597986]
[1772462609509,0.49813448,84.288,84.25,14.4279286]
[1772462609812,0.49813448,84.288,84.241,41.547465]
[1772462609813,0.49813448,84.288,84.26,14.4279286]
[1772462610316,0.49813448,84.298,84.26,14.4279286]
[1772462610894,0.49813448,84.279,84.243,1.18704224]
[1772462611096,14.4279286,84.28,84.24,14.4279286]
[1772462611297,0.49813448,84.293,84.25,14.4279286]
[1772462611594,0.49813448,84.293,84.232,1.38826209]
[1772462611595,0.49813448,84.293,84.261,11.86788668]
[1772462611809,14.4279286,84.29,84.261,11.86788668]
[1772462612002,0.49813448,84.289,84.242,29.67630759]
[1772462612519,0.49813448,84.289,84.26,14.4279286]
[1772462612716,0.49813448,84.289,84.25,14.4279286]
[1772462612924,0.49813448,84.298,84.26,14.4279286]
[1772462613104,0.49813448,84.298,84.244,0.19904498]
[1772462613105,14.4279286,84.29,84.25,14.4279286]
[1772462613299,0.49813448,84.289,84.242,29.67630759]
[1772462613501,14.4279286,84.25,84.21,14.4279286]
[1772462613699,1.18480604,84.288,84.194,29.69300525]
[1772462613700,11.87112704,84.238,84.194,29.69300525]